[Event "Fagernes Chess Open 2024"]
[Site "Fagernes"]
[Date "2024.03.30"]
[Round "8.7"]
[White "Sending, Stale Andre"]
[Black "Johansson, Henrik"]
[Result "1-0"]
[ECO "A40"]
[WhiteElo "1959"]
[BlackElo "1736"]
[Annotator "NA RC"]
[PlyCount "111"]
[EventDate "2024.03.25"]
[EventType "swiss"]
[EventCountry "NOR"]
[SourceTitle "playchess.com"]
[Source "ChessBase"]
[SourceQuality "1"]
[TimeControl "40/6000+30:2400+30"]

1. d4 {[%emt 0:03:24]} g6 {[%emt 0:00:33]} 2. h4 {[%emt 0:03:34]} Bg7 {[%emt 0:01:49]} 3. h5 {[%emt 0:03:08]} c5 {[%emt 0:06:00]} 4. c3 {[%emt 0:15:16]} cxd4 {[%emt 0:05:33]} 5. cxd4 {[%emt 0:02:17]} Nc6 {[%emt 0:06:22]} 6. Nf3 {[%emt 0:03:27]} Qb6 {[%emt 0:03:45]} 7. e3 {[%emt 0:08:07]} d6 {[%emt 0:02:43]} 8. Nc3 {[%emt 0:03:09]} Bg4 {[%emt 0:06:03]} 9. Bc4 {[%emt 0:02:52]} Nh6 {[%emt 0:09:15]} 10. Nd5 {[%emt 0:04:38]} Qd8 {[%emt 0:03:03]} 11. Nf4 $15 {[%emt 0:12:16]} (11. Qb3 $14) 11... e5 {[%emt 0:02:49]} 12. dxe5 {[%emt 0:22:22]} dxe5 {[%emt 0:01:25]} 13. Qxd8+ {[%emt 0:03:12]} Rxd8 {[%emt 0:00:31]} 14. Nd5 {[%emt 0:01:28]} Bxh5 {[%emt 0:07:52]} 15. Ng5 {[%emt 0:04:46]} Bg4 {[%emt 0:01:21]} 16. e4 {[%emt 0:05:01]} Nb4 {[%emt 0:04:33]} 17. f3 {[%emt 0:06:34]} Nc2+ {[%emt 0:06:54]} 18. Ke2 {[%emt 0:00:19]} Nxa1 {[%emt 0:03:14]} 19. fxg4 {[%emt 0:01:29]} Nc2 {[%emt 0:00:40]} 20. Nf3 {[%emt 0:01:49]} Nxg4 {[%emt 0:01:12]} 21. Bd2 {[%emt 0:00:56]} O-O {[%emt 0:01:13]} 22. Bg5 {[%emt 0:00:50]} Rd7 {[%emt 0:01:58]} 23. Nh4 {[%emt 0:00:31]} Nd4+ {[%emt 0:01:37]} 24. Ke1 {[%emt 0:00:01]} Ne6 {[%emt 0:00:49]} 25. Ne7+ {[%emt 0:00:23]} Kh8 {[%emt 0:00:40]} 26. Bxe6 {[%emt 0:00:10]} Rd1+ {[%emt 0:05:37]} 27. Kxd1 {[%emt 0:00:20]} Nf2+ {[%emt 0:00:20]} 28. Ke2 {[%emt 0:00:01]} Nxh1 {[%emt 0:00:35]} 29. Bd5 {[%emt 0:00:32]} Ng3+ {[%emt 0:00:47]} 30. Kf3 {[%emt 0:00:14]} Nh5 {[%emt 0:00:32]} 31. Bxb7 {[%emt 0:00:39]} f6 {[%emt 0:00:28]} 32. Be3 {[%emt 0:01:11]} f5 {[%emt 0:01:03]} 33. Nexg6+ {[%emt 0:01:26]} hxg6 {[%emt 0:00:24]} 34. Nxg6+ {[%emt 0:00:09]} Kg8 {[%emt 0:03:33]} 35. Nxf8 {[%emt 0:00:07]} fxe4+ {[%emt 0:01:08]} 36. Kxe4 {[%emt 0:00:42]} Kxf8 {[%emt 0:00:08]} 37. Bc5+ {[%emt 0:00:13]} Kf7 {[%emt 0:01:25]} 38. Bxa7 {[%emt 0:00:21]} Ng3+ {[%emt 0:01:19]} 39. Kf3 {[%emt 0:00:23]} Nf5 {[%emt 0:01:03]} 40. Bc5 {[%emt 0:01:13]} Ke6 {[%emt 0:01:49]} 41. g4 {[%emt 0:40:58]} Nd4+ {[%emt 0:41:42]} 42. Bxd4 {[%emt 0:00:31]} exd4 {[%emt 0:00:13]} 43. b4 {[%emt 0:00:00]} Kd6 {[%emt 0:00:00]} 44. Ke4 {[%emt 0:00:00]} Kc7 {[%emt 0:00:00]} 45. Bd5 {[%emt 0:00:00]} Kb6 {[%emt 0:00:00]} 46. Bc4 {[%emt 0:00:00]} Kc6 {[%emt 0:00:00]} 47. g5 {[%emt 0:00:00]} Bf8 {[%emt 0:00:00]} 48. g6 {[%emt 0:00:00]} Bg7 {[%emt 0:00:00]} 49. a4 {[%emt 0:00:00]} Kb6 {[%emt 0:00:00]} 50. a5+ {[%emt 0:00:00]} Ka7 {[%emt 0:00:00]} 51. b5 {[%emt 0:00:00]} Kb7 {[%emt 0:00:00]} 52. Bd5+ {[%emt 0:00:00]} Ka7 {[%emt 0:00:00]} 53. b6+ {[%emt 0:00:00]} Ka6 {[%emt 0:00:00]} 54. Bc4+ {[%emt 0:00:00]} Kb7 {[%emt 0:00:00]} 55. Bb5 {[%emt 0:00:00]} Bf6 {[%emt 0:00:00]} 56. Kd5 {[%emt 0:00:00]} 1-0

[Event "Fagernes Chess Open 2024"]
[Site "Fagernes"]
[Date "2024.03.30"]
[Round "8.8"]
[White "Dybvik, Bjorn Noralf"]
[Black "Spanton, Tim R"]
[Result "0-1"]
[ECO "C50"]
[WhiteElo "1656"]
[BlackElo "1876"]
[Annotator "NA RC COMBH"]
[PlyCount "138"]
[EventDate "2024.03.25"]
[EventType "swiss"]
[EventCountry "NOR"]
[SourceTitle "playchess.com"]
[Source "ChessBase"]
[SourceQuality "1"]
[TimeControl "40/6000+30:2400+30"]

1. e4 {[%emt 0:00:11]} e5 {[%emt 0:00:03]} 2. Nf3 {[%emt 0:00:17]} Nc6 {[%emt 0:00:05]} 3. Bc4 {[%emt 0:00:20]} Bc5 {[%emt 0:00:10]} 4. O-O {[%emt 0:00:57]} Nf6 {[%emt 0:00:08]} 5. d3 {[%emt 0:01:10]} d6 {[%emt 0:01:23]} 6. h3 {[%emt 0:01:10]} Na5 {[%emt 0:00:51]} 7. Bb3 {[%emt 0:01:41] C50: Hungarian Defence and Giuoco Pianissimo.} Nxb3 {[%emt 0:00:45]} 8. axb3 {[%emt 0:00:30]} a6 {[%emt 0:00:20]} 9. Bg5 {[%emt 0:01:54]} h6 {[%emt 0:00:33]} 10. Bh4 {[%emt 0:00:53]} Be6 {[%emt 0:02:56]} 11. d4 {[%emt 0:05:39]} exd4 {[%emt 0:01:44]} 12. Nxd4 {[%emt 0:01:40]} g5 {[%emt 0:00:34]} 13. Nxe6 {[%emt 0:02:02]} fxe6 {[%emt 0:00:15]} 14. Bg3 {[%emt 0:00:46]} Nxe4 {[%emt 0:03:21]} 15. Qh5+ {[%emt 0:02:44]} Kf8 {[%emt 0:02:44]} 16. Qf3+ {[%emt 0:06:31]} Nf6 {[%emt 0:00:57]} 17. Qxb7 {[%emt 0:03:20]} Kg7 {[%emt 0:01:26]} 18. Rxa6 {[%emt 0:05:08]} Rxa6 {[%emt 0:00:04]} 19. Qxa6 {[%emt 0:00:34]} Rf8 {[%emt 0:03:14]} 20. Qe2 {[%emt 0:02:28]} e5 {[%emt 0:01:25]} 21. Nc3 {[%emt 0:01:30]} Bd4 {[%emt 0:00:40]} 22. Nd1 {[%emt 0:03:39]} Qe8 {[%emt 0:01:39]} 23. c3 {[%emt 0:01:45]} Bb6 {[%emt 0:00:46]} 24. Ne3 {[%emt 0:02:07]} Qf7 {[%emt 0:05:19]} 25. c4 {[%emt 0:04:08]} Ne4 {[%emt 0:03:57]} 26. Bh2 {[%emt 0:07:06]} h5 {[%emt 0:01:38]} 27. Nd1 {[%emt 0:03:59]} Nc5 {[%emt 0:01:44]} 28. b4 {[%emt 0:04:05]} Ne6 {[%emt 0:00:33] [#]} 29. c5 $16 {[%emt 0:01:49]} Ba7 {[%emt 0:00:42]} 30. Qa6 {[%emt 0:03:29]} Bb8 {[%emt 0:01:03]} 31. Nc3 {[%emt 0:06:00]} Nd4 {[%emt 0:04:52]} 32. Ne4 {[%emt 0:03:25]} Qf5 {[%emt 0:01:44]} 33. Ng3 {[%emt 0:02:58]} Qg6 {[%emt 0:01:49]} 34. Ne2 {[%emt 0:03:16]} Nf5 {[%emt 0:01:05]} 35. Qd3 {[%emt 0:05:08]} Qf6 {[%emt 0:00:57]} 36. Ng3 {[%emt 0:01:31]} Nxg3 {[%emt 0:00:49]} 37. fxg3 {[%emt 0:01:45]} Qxf1+ {[%emt 0:02:58]} 38. Qxf1 {[%emt 0:00:21]} Rxf1+ {[%emt 0:00:04]} 39. Kxf1 {[%emt 0:00:13]} c6 {[%emt 0:01:16]} 40. g4 {[%emt 0:01:55]} hxg4 {[%emt 0:00:21]} 41. hxg4 {[%emt 0:40:25]} Kf6 {[%emt 0:40:41]} 42. Ke2 {[%emt 0:01:59]} Ke6 {[%emt 0:00:33]} 43. Kd3 {[%emt 0:02:31]} Kd5 {[%emt 0:04:55]} 44. cxd6 {[%emt 0:08:06]} Bxd6 {[%emt 0:00:14]} 45. Bg1 {[%emt 0:01:03]} Bxb4 {[%emt 0:00:41]} 46. Be3 {[%emt 0:01:47]} Be7 {[%emt 0:02:36]} 47. b3 {[%emt 0:01:05]} e4+ {[%emt 0:00:28]} 48. Kd2 {[%emt 0:03:22]} Bf6 {[%emt 0:01:57]} 49. Kc2 {[%emt 0:02:41]} Ke5 {[%emt 0:02:09]} 50. Kd2 {[%emt 0:00:00]} Bd8 {[%emt 0:00:00]} 51. Kc2 {[%emt 0:00:00]} Kf6 {[%emt 0:00:00]} 52. Kc3 {[%emt 0:00:00]} Ke5 {[%emt 0:00:00]} 53. Kc4 {[%emt 0:00:00]} Be7 {[%emt 0:00:00]} 54. Kc3 {[%emt 0:00:00]} Kd5 {[%emt 0:00:00]} 55. Kd2 {[%emt 0:00:00]} c5 {[%emt 0:00:00]} 56. Kc3 {[%emt 0:00:00]} Bf6+ {[%emt 0:00:00]} 57. Kd2 {[%emt 0:00:00]} Kc6 {[%emt 0:00:00]} 58. Kc2 {[%emt 0:00:00]} Kb5 {[%emt 0:00:00]} 59. Bd2 {[%emt 0:00:00]} Be7 {[%emt 0:00:00]} 60. Kb2 {[%emt 0:00:00]} c4 {[%emt 0:00:00]} 61. b4 {[%emt 0:00:00]} Bf6+ {[%emt 0:00:00]} 62. Kc2 {[%emt 0:00:00]} Ka4 {[%emt 0:00:00]} 63. Be1 {[%emt 0:00:00]} e3 {[%emt 0:00:00]} 64. Kd1 {[%emt 0:00:00]} c3 {[%emt 0:00:00]} 65. Kc2 {[%emt 0:00:00]} Kxb4 {[%emt 0:00:00]} 66. Bg3 {[%emt 0:00:00]} Kc4 {[%emt 0:00:00]} 67. Be1 {[%emt 0:00:30]} Be5 {[%emt 0:00:00]} 68. Kd1 {[%emt 0:01:36]} Kd3 {[%emt 0:00:00]} 69. Kc1 {[%emt 0:01:11]} Ke2 {[%emt 0:00:00]} 0-1

[Event "Fagernes Chess Open 2024"]
[Site "Fagernes"]
[Date "2024.03.30"]
[Round "8.9"]
[White "Sathish, Githiha"]
[Black "Ali, Karim"]
[Result "0-1"]
[ECO "A45"]
[WhiteElo "1656"]
[BlackElo "1855"]
[Annotator "NA RC COMBH"]
[PlyCount "126"]
[EventDate "2024.03.25"]
[EventType "swiss"]
[EventCountry "NOR"]
[SourceTitle "playchess.com"]
[Source "ChessBase"]
[SourceQuality "1"]
[TimeControl "40/6000+30:2400+30"]

1. d4 {[%emt 0:00:02]} Nf6 {[%emt 0:19:38]} 2. Bg5 {[%emt 0:00:34]} Ne4 {[%emt 0:02:28]} 3. Bf4 {[%emt 0:00:34]} d5 {[%emt 0:01:04]} 4. e3 {[%emt 0:02:01]} c5 {[%emt 0:00:32]} 5. c3 {[%emt 0:00:51]} Qb6 {[%emt 0:01:28]} 6. Qc2 {[%emt 0:03:26]} c4 {[%emt 0:03:56]} 7. Nd2 {[%emt 0:02:54]} Bf5 {[%emt 0:08:25]} 8. f3 {[%emt 0:05:44]} Ng3 {[%emt 0:05:21]} 9. e4 {[%emt 0:03:22]} Nxf1 {[%emt 0:00:05]} 10. Nxf1 {[%emt 0:04:23]} Bg6 {[%emt 0:02:17]} 11. Ne2 {[%emt 0:06:31]} Nd7 {[%emt 0:02:15]} 12. Nd2 {[%emt 0:03:02]} e6 {[%emt 0:05:28]} 13. O-O {[%emt 0:04:18]} Be7 {[%emt 0:03:56]} 14. Rae1 {[%emt 0:08:03]} O-O $11 {[%emt 0:00:22]} 15. Qc1 {[%emt 0:12:07]} Qc6 {[%emt 0:04:09]} 16. Ng3 {[%emt 0:08:08]} Bh4 {[%emt 0:04:15]} 17. Rf2 {[%emt 0:07:42]} Nf6 {[%emt 0:07:40]} 18. Rfe2 {[%emt 0:02:51]} h6 {[%emt 0:02:47]} 19. Kh1 {[%emt 0:05:08]} Nh5 {[%emt 0:05:24]} 20. Ndf1 {[%emt 0:00:50]} Nxf4 {[%emt 0:01:13]} 21. Qxf4 {[%emt 0:00:20]} Bg5 {[%emt 0:00:30]} 22. Qg4 {[%emt 0:02:24]} f5 {[%emt 0:03:24]} 23. exf5 {[%emt 0:02:42]} exf5 {[%emt 0:00:38]} 24. Qh3 {[%emt 0:01:03]} Rae8 {[%emt 0:00:39]} 25. Rxe8 {[%emt 0:02:07]} Rxe8 {[%emt 0:00:05]} 26. Rxe8+ {[%emt 0:00:48]} Qxe8 {[%emt 0:00:06]} 27. Nxf5 {[%emt 0:01:00]} Qe1 {[%emt 0:00:46]} 28. g4 {[%emt 0:02:06]} Bxf5 {[%emt 0:05:59]} 29. gxf5 {[%emt 0:00:12]} Qb1 {[%emt 0:01:43]} 30. f6 {[%emt 0:00:38]} Bxf6 {[%emt 0:00:23]} 31. Qe6+ {[%emt 0:00:45]} Kh7 {[%emt 0:00:11]} 32. Qh3 {[%emt 0:00:24]} Qd3 {[%emt 0:04:03]} 33. Kg1 {[%emt 0:00:53]} Qg6+ {[%emt 0:03:00]} 34. Kh1 {[%emt 0:02:32]} Qf7 {[%emt 0:03:58]} 35. a3 {[%emt 0:02:37]} Bg5 {[%emt 0:01:05]} 36. Qg2 {[%emt 0:01:22]} b5 {[%emt 0:00:39]} 37. Qc2+ {[%emt 0:02:43]} g6 {[%emt 0:00:09]} 38. Kg2 {[%emt 0:00:17]} h5 {[%emt 0:00:14]} 39. h3 {[%emt 0:01:24]} Qf4 {[%emt 0:01:14]} 40. Qe2 {[%emt 0:00:42]} Qf7 {[%emt 0:04:09]} 41. Qe5 {[%emt 0:41:34]} Bf4 {[%emt 0:44:18]} 42. Qe2 {[%emt 0:02:05]} a5 {[%emt 0:00:00]} 43. Qe1 {[%emt 0:00:00]} Bd6 {[%emt 0:00:00]} 44. Nd2 {[%emt 0:00:00]} b4 {[%emt 0:00:00]} 45. axb4 {[%emt 0:00:00]} axb4 {[%emt 0:00:00]} 46. Nf1 {[%emt 0:00:00]} b3 {[%emt 0:00:00]} 47. Qe2 {[%emt 0:00:00]} Kh6 {[%emt 0:00:00]} 48. Qe3+ {[%emt 0:00:00]} Bf4 {[%emt 0:00:00]} 49. Qe2 {[%emt 0:00:00]} Qf5 {[%emt 0:00:00]} 50. Qe8 {[%emt 0:00:00]} Qf6 {[%emt 0:00:00]} 51. Qg8 {[%emt 0:00:00]} Bc1 {[%emt 0:00:00]} 52. h4 {[%emt 0:00:00]} Bxb2 {[%emt 0:00:00]} 53. Qxd5 {[%emt 0:00:00]} Bxc3 {[%emt 0:00:00]} 54. Qxc4 {[%emt 0:00:00]} b2 {[%emt 0:00:00]} 55. Qb3 {[%emt 0:00:00]} Bxd4 {[%emt 0:00:00]} 56. Qc2 {[%emt 0:00:00]} Qxh4 {[%emt 0:00:00]} 57. Qb1 {[%emt 0:00:00]} Qf2+ {[%emt 0:00:00]} 58. Kh3 {[%emt 0:00:00]} Qxf3+ {[%emt 0:00:00]} 59. Kh2 {[%emt 0:00:00]} Qf4+ {[%emt 0:00:00]} 60. Kg2 {[%emt 0:00:00]} Qg4+ {[%emt 0:00:00]} 61. Kh2 {[%emt 0:00:00]} h4 {[%emt 0:00:00]} 62. Nd2 {[%emt 0:00:00]} Qg3+ {[%emt 0:00:00]} 63. Kh1 {[%emt 0:00:00]} Qh3# {[%emt 0:00:00]} 0-1

[Event "Fagernes Chess Open 2024"]
[Site "Fagernes"]
[Date "2024.03.30"]
[Round "8.10"]
[White "Skogholt, Steinar Dieseth"]
[Black "Agustsson, Hafsteinn"]
[Result "1/2-1/2"]
[ECO "E01"]
[WhiteElo "1611"]
[BlackElo "1825"]
[Annotator "NA RC COMBH"]
[PlyCount "46"]
[EventDate "2024.03.25"]
[EventType "swiss"]
[EventCountry "NOR"]
[SourceTitle "playchess.com"]
[Source "ChessBase"]
[SourceQuality "1"]
[TimeControl "40/6000+30:2400+30"]

1. d4 {[%emt 0:00:03]} d5 {[%emt 0:00:10]} 2. Nf3 {[%emt 0:00:21]} e6 {[%emt 0:01:04]} 3. c4 {[%emt 0:00:38]} Nf6 {[%emt 0:00:00]} 4. g3 {[%emt 0:00:41]} dxc4 {[%emt 0:01:46]} 5. Qc2 {[%emt 0:01:20]} c5 {[%emt 0:06:13]} 6. dxc5 {[%emt 0:03:12]} Bxc5 {[%emt 0:02:29]} 7. Bg2 {[%emt 0:03:04]} Nc6 {[%emt 0:03:10]} 8. O-O {[%emt 0:03:12]} O-O {[%emt 0:02:04]} 9. Qxc4 {[%emt 0:07:26]} Qd5 {[%emt 0:21:06]} 10. Qa4 {[%emt 0:12:02]} b5 {[%emt 0:02:57]} 11. Qd1 {[%emt 0:06:17]} Qxd1 {[%emt 0:13:39]} 12. Rxd1 {[%emt 0:00:09]} Ne4 {[%emt 0:00:48]} 13. e3 {[%emt 0:07:00]} Bb7 $11 {[%emt 0:02:26]} 14. Bd2 {[%emt 0:06:38]} b4 {[%emt 0:11:42]} 15. Be1 {[%emt 0:09:14]} Rfd8 {[%emt 0:06:13]} 16. Nbd2 {[%emt 0:02:36]} Na5 {[%emt 0:04:58]} 17. Rac1 {[%emt 0:06:38]} Rac8 {[%emt 0:12:07]} 18. Nxe4 {[%emt 0:03:53]} Rxd1 {[%emt 0:00:14]} 19. Rxd1 {[%emt 0:00:05]} Bxe4 {[%emt 0:00:05]} 20. Rc1 {[%emt 0:00:52]} Bb7 {[%emt 0:02:43]} 21. Nd4 {[%emt 0:02:56]} Bxd4 {[%emt 0:06:37]} 22. Rxc8+ {[%emt 0:00:27]} Bxc8 {[%emt 0:00:05]} 23. exd4 {[%emt 0:00:09]} b3 {[%emt 0:01:18]} 1/2-1/2

[Event "Fagernes Chess Open 2024"]
[Site "Fagernes"]
[Date "2024.03.31"]
[Round "9.1"]
[White "Kittilsen, Sigurd"]
[Black "Strand, Amund Pihl"]
[Result "1/2-1/2"]
[ECO "B45"]
[WhiteElo "1910"]
[BlackElo "1860"]
[Annotator "TA"]
[PlyCount "33"]
[EventDate "2024.03.25"]
[EventType "swiss"]
[EventCountry "NOR"]
[SourceTitle "playchess.com"]
[Source "ChessBase"]
[SourceQuality "1"]
[TimeControl "40/6000+30:2400+30"]

{[%evp 11,33,15,28,36,16,-11,-8,-6,8,16,23,15,81,86,81,53,122,71,75,70,72,59,56,58]} 1. e4 {[%emt 0:00:01]} c5 {[%emt 0:12:38]} 2. Nf3 {[%emt 0:00:11]} e6 {[%emt 0:00:05]} 3. d4 {[%emt 0:00:06]} cxd4 {[%emt 0:00:05]} 4. Nxd4 {[%emt 0:00:06]} Nf6 {[%emt 0:00:04]} 5. Nc3 {[%emt 0:00:13]} Nc6 {[%emt 0:00:06]} 6. Ndb5 {[%emt 0:00:37]} Bc5 {[%emt 0:00:09]} 7. Nd6+ {[%emt 0:08:07]} Ke7 {[%emt 0:00:18]} 8. Nxc8+ {[%emt 0:00:43]} (8. Bf4 {feels hotter.} e5 9. Nf5+ Kf8 10. Bg5) 8... Rxc8 {[%emt 0:00:11]} 9. Bd3 {[%emt 0:05:28] The position is equal.} h6 {[%emt 0:12:14]} 10. O-O {[%emt 0:01:06]} Re8 {[%emt 0:00:47]} 11. Na4 {[%emt 0:01:04]} Ne5 {[%emt 0:07:16]} (11... Bd6 $11) 12. Nxc5 $16 {[%emt 0:05:58]} Rxc5 {[%emt 0:00:19]} 13. Be3 {[%emt 0:05:22]} Nxd3 {[%emt 0:03:33]} (13... Rc8 $14) 14. cxd3 {[%emt 0:08:54]} (14. Qxd3 $142 Rh5 15. Bf4 (15. Bxa7 Qc7 $14)) 14... Rc6 {[%emt 0:01:05]} 15. Qa4 {[%emt 0:01:42][%cal Of1c1]} (15. Bxa7 b6 16. Rc1 Qc7 17. Rxc6 dxc6 $19) 15... Qa8 {[%emt 0:13:46]} 16. Qa3+ {[%emt 0:02:00]} ({And not} 16. Bxa7 d6 17. e5 Nd5 $17 (17... dxe5 18. Qb4+ Kd7 19. Be3 $11)) 16... d6 {[%emt 0:04:40]} 17. Bd4 {[%emt 0:13:53] Weighted Error Value: White=0.15 (very precise) /Black=0.21 (precise) .  Mistake:       	White=1     	Black=2      Inaccurate:     	White=2     	---        OK:         	White=5     	Black=3      Best:        	---       	Black=1} (17. Bxa7 $2 {too greedy.} Ra6 18. Qb4 Qxa7 $19 (18... Rxa7 $2 19. e5 $19)) 1/2-1/2

[Event "Fagernes Chess Open 2024"]
[Site "Fagernes"]
[Date "2024.03.31"]
[Round "9.2"]
[White "Hausken, Andreas Skrede"]
[Black "Sending, Stale Andre"]
[Result "1-0"]
[ECO "C41"]
[WhiteElo "1963"]
[BlackElo "1959"]
[Annotator "NA RC"]
[PlyCount "65"]
[EventDate "2024.03.25"]
[EventType "swiss"]
[EventCountry "NOR"]
[SourceTitle "playchess.com"]
[Source "ChessBase"]
[SourceQuality "1"]
[TimeControl "40/6000+30:2400+30"]

1. e4 {[%emt 0:09:41]} d6 {[%emt 0:12:51]} 2. d4 {[%emt 0:00:05]} Nf6 {[%emt 0:00:05]} 3. Nc3 {[%emt 0:00:06]} Nbd7 {[%emt 0:00:02]} 4. Nf3 {[%emt 0:00:34]} e5 {[%emt 0:00:04]} 5. h3 {[%emt 0:00:20]} Be7 {[%emt 0:00:22]} 6. g4 {[%emt 0:00:05]} h6 {[%emt 0:00:35]} 7. Be3 {[%emt 0:00:22]} c6 {[%emt 0:00:11]} 8. Qd2 {[%emt 0:01:20]} b5 {[%emt 0:00:40]} 9. Bd3 {[%emt 0:00:24]} Qc7 {[%emt 0:02:15]} 10. Ne2 {[%emt 0:05:19]} a6 {[%emt 0:04:05]} 11. Ng3 {[%emt 0:05:11]} d5 {[%emt 0:27:59]} 12. O-O-O {[%emt 0:04:11]} Bd6 {[%emt 0:17:56]} 13. dxe5 {[%emt 0:07:42]} Nxe5 {[%emt 0:02:39]} 14. Nxe5 {[%emt 0:00:09]} Bxe5 {[%emt 0:00:11]} 15. f4 {[%emt 0:04:46]} d4 {[%emt 0:05:14]} 16. fxe5 {[%emt 0:00:07]} dxe3 {[%emt 0:00:22]} 17. Qc3 {[%emt 0:00:32]} Nd7 {[%emt 0:28:26]} 18. Nf5 {[%emt 0:02:06]} Nxe5 {[%emt 0:00:58]} 19. Nxg7+ {[%emt 0:03:12]} Kf8 {[%emt 0:00:47]} 20. Nh5 {[%emt 0:02:10]} c5 {[%emt 0:01:16]} 21. Be2 {[%emt 0:02:39]} Be6 {[%emt 0:02:06]} 22. Qxe3 {[%emt 0:00:01]} Bxa2 {[%emt 0:01:08]} 23. Qf2 {[%emt 0:01:11]} Qe7 {[%emt 0:00:34]} 24. b3 {[%emt 0:01:59]} c4 {[%emt 0:00:12]} 25. Kb2 {[%emt 0:00:14]} cxb3 {[%emt 0:00:31]} 26. cxb3 {[%emt 0:00:05]} Bxb3 {[%emt 0:00:58]} 27. Kxb3 {[%emt 0:00:05]} a5 {[%emt 0:00:46]} 28. Qd4 {[%emt 0:00:59]} a4+ {[%emt 0:00:10]} 29. Ka2 {[%emt 0:00:02]} Rc8 {[%emt 0:00:41]} 30. Bxb5 {[%emt 0:00:42]} Qe6+ {[%emt 0:00:48]} 31. Qd5 {[%emt 0:00:23]} Rc2+ {[%emt 0:00:11]} 32. Kb1 {[%emt 0:00:36]} Qxd5 {[%emt 0:00:12]} 33. Rxd5 {[%emt 0:01:21]} 1-0

[Event "Fagernes Chess Open 2024"]
[Site "Fagernes"]
[Date "2024.03.31"]
[Round "9.3"]
[White "Andersen, Dag"]
[Black "Halvorsen, Benjamin"]
[Result "1/2-1/2"]
[ECO "A47"]
[WhiteElo "1899"]
[BlackElo "1848"]
[Annotator "NA RC COMBH"]
[PlyCount "37"]
[EventDate "2024.03.25"]
[EventType "swiss"]
[EventCountry "NOR"]
[SourceTitle "playchess.com"]
[Source "ChessBase"]
[SourceQuality "1"]
[TimeControl "40/6000+30:2400+30"]

1. d4 {[%emt 0:00:05]} Nf6 {[%emt 0:06:07]} 2. Nf3 {[%emt 0:00:12]} e6 {[%emt 0:00:06]} 3. Bg5 {[%emt 0:02:02]} d5 {[%emt 0:01:40]} 4. e3 {[%emt 0:01:18]} Be7 {[%emt 0:02:42]} 5. Bd3 {[%emt 0:00:14]} O-O {[%emt 0:01:29]} 6. Nbd2 {[%emt 0:00:26]} c5 {[%emt 0:00:48]} 7. c3 {[%emt 0:00:22]} b6 {[%emt 0:05:26]} 8. Qe2 {[%emt 0:00:45]} Nc6 {[%emt 0:00:30]} 9. O-O {[%emt 0:01:11]} Bb7 {[%emt 0:01:35]} 10. Rfe1 {[%emt 0:07:59]} Nd7 {[%emt 0:03:54]} 11. Bxe7 {[%emt 0:02:26]} Qxe7 {[%emt 0:00:11]} 12. Rad1 {[%emt 0:05:24]} Rad8 {[%emt 0:15:46]} 13. Bb1 {[%emt 0:01:08]} Rfe8 {[%emt 0:00:30]} 14. e4 {[%emt 0:00:30]} dxe4 {[%emt 0:00:30]} 15. Nxe4 {[%emt 0:00:30]} cxd4 {[%emt 0:00:30]} 16. Nxd4 {[%emt 0:00:30]} Nf6 {[%emt 0:00:30]} 17. Nxf6+ {[%emt 0:00:30]} Qxf6 {[%emt 0:00:30]} 18. Nxc6 {[%emt 0:00:30]} Bxc6 {[%emt 0:00:30]} 19. Qg4 {[%emt 0:00:30]} 1/2-1/2

[Event "Fagernes Chess Open 2024"]
[Site "Fagernes"]
[Date "2024.03.31"]
[Round "9.4"]
[White "Nordahl, Christine"]
[Black "Spanton, Tim R"]
[Result "1/2-1/2"]
[ECO "D02"]
[WhiteElo "1673"]
[BlackElo "1876"]
[Annotator "NA RC COMBH"]
[PlyCount "92"]
[EventDate "2024.03.25"]
[EventType "swiss"]
[EventCountry "NOR"]
[SourceTitle "playchess.com"]
[Source "ChessBase"]
[SourceQuality "1"]
[TimeControl "40/6000+30:2400+30"]

1. d4 {[%emt 0:00:03]} d5 {[%emt 0:00:24]} 2. Nf3 {[%emt 0:00:30]} Nc6 {[%emt 0:00:11]} 3. Bf4 {[%emt 0:00:42]} e6 {[%emt 0:00:16]} 4. e3 {[%emt 0:00:53]} Bd6 {[%emt 0:00:05]} 5. Bg3 {[%emt 0:03:44]} Nf6 {[%emt 0:00:32]} 6. c4 {[%emt 0:02:32]} Ne4 {[%emt 0:02:23]} 7. Bxd6 {[%emt 0:05:13]} Qxd6 {[%emt 0:01:26]} 8. Nc3 {[%emt 0:04:45]} Nxc3 {[%emt 0:01:36]} 9. bxc3 {[%emt 0:00:24]} O-O {[%emt 0:00:09]} 10. Rb1 {[%emt 0:09:56]} b6 {[%emt 0:03:47]} 11. cxd5 {[%emt 0:06:20]} exd5 {[%emt 0:00:14]} 12. Qc2 {[%emt 0:00:36]} Bg4 {[%emt 0:00:52]} 13. Ng5 {[%emt 0:05:39]} Qg6 {[%emt 0:01:45]} 14. Qxg6 {[%emt 0:02:30]} hxg6 {[%emt 0:00:07]} 15. Bd3 {[%emt 0:01:47]} f6 {[%emt 0:01:52]} 16. h3 {[%emt 0:03:45]} Bd7 {[%emt 0:02:56]} 17. Nf3 {[%emt 0:01:03]} Ne7 {[%emt 0:00:52]} 18. c4 {[%emt 0:12:15]} Be6 {[%emt 0:01:15]} 19. Nd2 {[%emt 0:06:53]} dxc4 {[%emt 0:02:42]} 20. Bxc4 {[%emt 0:00:34]} Bxc4 {[%emt 0:02:07]} 21. Nxc4 {[%emt 0:00:17]} Rac8 {[%emt 0:00:15]} 22. Ke2 {[%emt 0:04:32]} c5 {[%emt 0:00:26]} 23. Nd6 {[%emt 0:01:02]} Rc6 {[%emt 0:00:45]} 24. dxc5 {[%emt 0:03:06]} Rxc5 {[%emt 0:00:20]} 25. Rhc1 {[%emt 0:00:58]} Rd5 {[%emt 0:10:18]} 26. Nb5 {[%emt 0:06:45]} Rfd8 {[%emt 0:00:31]} 27. Nd4 {[%emt 0:03:18]} Nf5 {[%emt 0:03:13]} 28. Rc7 {[%emt 0:01:02]} Nxd4+ {[%emt 0:00:54]} 29. exd4 {[%emt 0:00:20]} R8d7 {[%emt 0:00:15]} 30. Rxd7 {[%emt 0:01:13]} Rxd7 {[%emt 0:00:07]} 31. Kd3 {[%emt 0:02:00]} Kf7 {[%emt 0:00:09]} 32. Re1 {[%emt 0:00:41]} Re7 {[%emt 0:00:26]} 33. Rxe7+ {[%emt 0:06:42]} Kxe7 {[%emt 0:00:10]} 34. Kc4 {[%emt 0:00:05]} a6 {[%emt 0:00:19]} 35. Kd5 {[%emt 0:02:42]} Kd7 {[%emt 0:00:06]} 36. a4 {[%emt 0:01:28]} g5 {[%emt 0:00:55]} 37. g3 {[%emt 0:00:38]} f5 {[%emt 0:01:11]} 38. f4 {[%emt 0:04:59]} gxf4 {[%emt 0:01:06]} 39. gxf4 {[%emt 0:00:08]} g6 {[%emt 0:00:35]} 40. h4 {[%emt 0:00:07]} Kc7 {[%emt 0:00:34]} 41. Ke6 {[%emt 0:09:10]} b5 {[%emt 0:02:05]} 42. axb5 {[%emt 0:00:35]} axb5 {[%emt 0:00:17]} 43. Kd5 {[%emt 0:03:29]} Kb6 {[%emt 0:00:16]} 44. Ke6 {[%emt 0:01:21]} Kc7 {[%emt 0:02:00]} 45. Ke7 {[%emt 0:04:20]} Kc6 {[%emt 0:00:20]} 46. Ke6 {[%emt 0:00:32]} Kc7 {[%emt 0:00:13]} 1/2-1/2